fUST/lending_fUST_20260417
["ID","MTS","AMOUNT","RATE_DAILY","PERIOD"]
[420629590,1776372646691,-914.05,9.041e-05,2]
[420629591,1776372646700,-12938.94,9.041e-05,2]
[420629592,1776372646709,-1697.58,9.041e-05,2]
[420629593,1776372646719,-769.57,9.041e-05,2]
[420629594,1776372646728,-655.68,9.041e-05,2]
[420629595,1776372646737,-8592.3,9.041e-05,2]
[420629596,1776372646746,-707.34,9.041e-05,2]
[420629597,1776372646755,-6980.53,9.041e-05,2]
[420629598,1776372646765,-500.0,9.041e-05,2]
[420629599,1776372646774,-3251.14,9.041e-05,2]
[420629600,1776372646783,-169.0806894,9.041e-05,2]
[420629601,1776372646792,-500.0,9.041e-05,2]
[420629602,1776372646802,-1018.33,9.041e-05,2]
[420629603,1776372646811,-6334.52,9.041e-05,2]
[420629604,1776372646820,-500.0,9.041e-05,2]
[420629605,1776372646829,-500.0,9.041e-05,2]
[420629606,1776372646838,-569.95085605,9.099e-05,2]
[420629607,1776372646848,-1342.56759051,9.1e-05,2]
[420629608,1776372646857,-5743.8980674,9.121e-05,2]
[420629609,1776372646866,-10000.0,9.123e-05,2]
[420629610,1776372646876,-500.0,9.126e-05,2]
[420629611,1776372646885,-1000.0,9.157e-05,2]
[420629612,1776372646895,-500.0,9.157e-05,2]
[420629613,1776372646904,-1000.0,9.163e-05,2]
[420629614,1776372646914,-1000.0,9.163e-05,2]
[420629615,1776372646923,-1342.56759051,9.2e-05,2]
[420629616,1776372646932,-732.0,9.266e-05,2]
[420629617,1776372646942,-311.0,9.266e-05,2]
[420629618,1776372646951,-731.0,9.266e-05,2]
[420629619,1776372646960,-1443.0,9.266e-05,2]
[420629620,1776372646970,-860.0,9.266e-05,2]
[420629621,1776372646979,-2312.83697232,9.276e-05,2]
[420629622,1776372646988,-1342.56759051,9.3e-05,2]
[420629623,1776372646998,-301.60012324,9.31e-05,2]
[420629624,1776372647008,-1387.1295,9.315e-05,2]
[420629625,1776372647017,-500.0,9.315e-05,2]
[420629626,1776372647027,-500.0,9.315e-05,2]
[420629627,1776372647036,-1072.02,9.315e-05,2]
[420629628,1776372647046,-500.0,9.315e-05,2]
[420629629,1776372647056,-500.0,9.315e-05,2]
[420629630,1776372647066,-1181.47,9.315e-05,2]
[420629631,1776372647076,-500.0,9.315e-05,2]
[420629632,1776372647086,-500.0,9.315e-05,2]
[420629633,1776372647097,-500.0,9.315e-05,2]
[420629634,1776372647106,-1002.16,9.315e-05,2]
[420629635,1776372647116,-602.86,9.315e-05,2]
[420629636,1776372647125,-500.0,9.315e-05,2]
[420629637,1776372647135,-500.0,9.315e-05,2]
[420629638,1776372647144,-1183.2,9.315e-05,2]
[420629639,1776372647153,-500.0,9.315e-05,2]
[420629640,1776372647162,-500.0,9.315e-05,2]
[420629641,1776372647172,-2025.12,9.315e-05,2]
[420629642,1776372647181,-500.0,9.315e-05,2]
[420629643,1776372647190,-528.32,9.315e-05,2]
[420629644,1776372647199,-909.41,9.315e-05,2]
[420629645,1776372647209,-500.0,9.315e-05,2]
[420629646,1776372647218,-971.66,9.315e-05,2]
[420629647,1776372647228,-500.0,9.315e-05,2]
[420629648,1776372647238,-511.29,9.315e-05,2]
[420629649,1776372647247,-796.63,9.315e-05,2]
[420629650,1776372647256,-500.0,9.315e-05,2]
[420629651,1776372647265,-500.0,9.315e-05,2]
[420629652,1776372647276,-1614.92,9.315e-05,2]
[420629653,1776372647285,-1841.84,9.315e-05,2]
[420629654,1776372647295,-641.21,9.315e-05,2]
[420629655,1776372647304,-1252.37,9.315e-05,2]
[420629656,1776372647313,-500.0,9.315e-05,2]
[420629657,1776372647322,-588.88991294,9.315e-05,2]
[420629658,1776372647331,-578.62,9.315e-05,2]
[420629659,1776372647340,-500.0,9.315e-05,2]
[420629660,1776372647350,-573.51,9.315e-05,2]
[420629661,1776372647359,-500.0,9.315e-05,2]
[420629662,1776372647369,-828.64,9.315e-05,2]
[420629663,1776372647378,-1499.55,9.315e-05,2]
[420629664,1776372647386,-500.0,9.315e-05,2]
[420629665,1776372647397,-594.04,9.315e-05,2]
[420629666,1776372647406,-500.0,9.315e-05,2]
[420629667,1776372647415,-967.34,9.315e-05,2]
[420629668,1776372647424,-500.0,9.315e-05,2]
[420629669,1776372647435,-500.0,9.315e-05,2]
[420629670,1776372647445,-532.52,9.315e-05,2]
[420629671,1776372647454,-500.0,9.315e-05,2]
[420629672,1776372647463,-500.0,9.315e-05,2]
[420629673,1776372647472,-500.0,9.315e-05,2]
[420629674,1776372647482,-500.0,9.315e-05,2]
[420629675,1776372647491,-500.0,9.315e-05,2]
[420629676,1776372647505,-500.0,9.315e-05,2]
[420629677,1776372647516,-500.0,9.315e-05,2]
[420629678,1776372647526,-500.0,9.315e-05,2]
[420629679,1776372647536,-500.0,9.315e-05,2]
[420629680,1776372647546,-500.0,9.315e-05,2]
[420629681,1776372647555,-500.0,9.315e-05,2]
[420629682,1776372647564,-7983.39,9.315e-05,2]
[420629683,1776372647574,-540.01,9.315e-05,2]
[420629684,1776372647583,-500.0,9.315e-05,2]
[420629685,1776372647592,-500.0,9.315e-05,2]
[420629686,1776372647601,-500.0,9.315e-05,2]
[420629687,1776372647610,-2874.33,9.315e-05,2]
[420629688,1776372647620,-500.0,9.315e-05,2]
[420629689,1776372647629,-7037.76,9.315e-05,2]
[420629690,1776372647639,-501.0,9.315e-05,2]
[420629691,1776372647648,-1488.68,9.315e-05,2]
[420629692,1776372647658,-500.0,9.315e-05,2]
[420629693,1776372647668,-6664.8,9.315e-05,2]
[420629694,1776372647679,-500.0,9.315e-05,2]
[420629695,1776372647689,-1028.49,9.315e-05,2]
[420629696,1776372647699,-500.0,9.315e-05,2]
[420629697,1776372647883,-1224.48,9.315e-05,2]
[420629698,1776372647893,-500.0,9.315e-05,2]
[420629699,1776372647903,-500.0,9.315e-05,2]
[420629700,1776372647914,-500.0,9.315e-05,2]
[420629701,1776372647923,-2181.03,9.315e-05,2]
[420629702,1776372647932,-604.82,9.315e-05,2]
[420629703,1776372647941,-1390.27,9.315e-05,2]
[420629704,1776372647950,-3854.84,9.315e-05,2]
[420629705,1776372647959,-522.02,9.315e-05,2]
[420629706,1776372647968,-500.0,9.315e-05,2]
[420629707,1776372647978,-1174.18,9.315e-05,2]
[420629708,1776372647987,-683.4,9.315e-05,2]
[420629709,1776372647996,-500.0,9.315e-05,2]
[420629710,1776372648006,-2920.99,9.315e-05,2]
[420629711,1776372648015,-500.0,9.315e-05,2]
[420629712,1776372648024,-7115.79,9.315e-05,2]
[420629713,1776372648034,-936.42,9.315e-05,2]
[420629714,1776372648044,-500.0,9.315e-05,2]
[420629715,1776372648053,-500.0,9.315e-05,2]
[420629716,1776372648063,-1020.89,9.315e-05,2]
[420629717,1776372648072,-5399.41,9.315e-05,2]
[420629718,1776372648081,-500.0,9.315e-05,2]
[420629719,1776372648091,-1160.57,9.315e-05,2]
[420629720,1776372648099,-747.26,9.315e-05,2]
[420629721,1776372648108,-2104.89,9.315e-05,2]
[420629722,1776372648117,-500.0,9.315e-05,2]
[420629723,1776372648126,-500.0,9.315e-05,2]
[420629724,1776372648135,-500.0,9.315e-05,2]
[420629725,1776372648145,-7448.83,9.315e-05,2]
[420629726,1776372648154,-4948.78,9.315e-05,2]
[420629727,1776372648163,-500.0,9.315e-05,2]
[420629728,1776372648173,-5523.74,9.315e-05,2]
[420629729,1776372648182,-500.0,9.315e-05,2]
[420629730,1776372648191,-1785.06,9.315e-05,2]
[420629731,1776372648200,-6078.87974335,9.315e-05,2]
[420629769,1776372800189,3000.0,9e-05,30]
[420629776,1776373254378,358.91189904,5e-05,2]
[420629779,1776373538491,-333.47182,4.9e-05,2]
[420629924,1776373839042,-336.59230681,4.988e-05,2]
[420629925,1776373839052,-141.08810096,5e-05,2]
[420629926,1776373839061,-397.17892203,6.988e-05,2]
[420629927,1776373839071,-261.68823184,7.6e-05,2]
[420629928,1776373839082,-464.40666674,7.6e-05,2]
[420629929,1776373839091,-1795.72629948,7.6e-05,2]
[420629930,1776373839101,-1504.81796133,7.6e-05,2]
[420629931,1776373839112,-105.64900508,7.6e-05,2]
[420629932,1776373839121,-1884.4022639,7.6e-05,2]
[420629933,1776373839130,-308.16112523,7.6e-05,2]
[420629934,1776373839140,-303.66772726,7.6e-05,2]
[420629935,1776373839149,-3644.31626841,7.6e-05,2]
[420629936,1776373839159,-500.0,8.093e-05,2]
[420629937,1776373839168,-500.0,8.093e-05,2]
[420629938,1776373839177,-500.0,8.093e-05,2]
[420629939,1776373839187,-366.37308605,8.093e-05,2]
[420629940,1776373839196,-500.0,8.093e-05,2]
[420629941,1776373839205,-500.0,8.093e-05,2]
[420629942,1776373839214,-500.0,8.118e-05,2]
[420629943,1776373839224,-500.0,8.118e-05,2]
[420629944,1776373839232,-500.0,8.118e-05,2]
[420629945,1776373839241,-250.91918728,8.118e-05,2]
[420629946,1776373839251,-500.0,8.118e-05,2]
[420629947,1776373839260,-500.0,8.118e-05,2]
[420629948,1776373839270,-500.0,8.118e-05,2]
[420629949,1776373839279,-500.0,8.118e-05,2]
[420629950,1776373839289,-500.0,8.118e-05,2]
[420629951,1776373839298,-500.0,8.118e-05,2]
[420629952,1776373839307,-500.0,8.118e-05,2]
[420629953,1776373839316,-367.27388624,8.118e-05,2]
[420629954,1776373839325,-500.0,8.118e-05,2]
[420629955,1776373839335,-500.0,8.118e-05,2]
[420629956,1776373839345,-600.0,8.118e-05,2]
[420629957,1776373839354,-297966.71119675,8.119e-05,2]
[420629958,1776373839366,-49594.05573075,8.119e-05,2]
[420629976,1776373846755,-26782.33033567,8.119e-05,2]
[420629977,1776373846932,-7832.10262351,8.119e-05,2]
[420630025,1776374392534,1016.04,0.00024658,120]
[420630033,1776374622800,1318.67,0.00024658,120]
[420630045,1776375024496,-166.52719729,3.367e-05,2]
[420630046,1776375024530,-406.2843823,3.367e-05,2]
[420630050,1776375031678,-5000.0,3.333e-05,2]
[420630051,1776375031688,-358.91189904,3.367e-05,2]
[420630052,1776375031697,-337.42105192,3.417e-05,2]
[420630053,1776375031707,-165.9310495,3.538e-05,2]
[420630054,1776375031716,-398.15684126,5.417e-05,2]
[420630055,1776375031725,-458.89263061,7.417e-05,2]
[420630056,1776375031733,-300.0,7.839e-05,2]
[420630057,1776375031743,-1200.0,7.84e-05,2]
[420630058,1776375031752,-1806.97196513,7.841e-05,2]
[420630059,1776375031761,-3630.81823346,7.941e-05,2]
[420630060,1776375031771,-152.0,8.028e-05,7]
[420630061,1776375031780,-5454.66450179,8.041e-05,2]
[420630062,1776375031790,-500.0,8.093e-05,2]
[420630063,1776375031799,-500.0,8.117e-05,2]
[420630064,1776375031809,-500.0,8.117e-05,2]
[420630065,1776375031818,-500.0,8.117e-05,2]
[420630066,1776375031829,-500.0,8.117e-05,2]
[420630067,1776375031838,-500.0,8.117e-05,2]
[420630068,1776375031848,-500.0,8.117e-05,2]
[420630069,1776375031858,-231.84021984,8.117e-05,2]
[420630070,1776375031867,-395.01358779,8.117e-05,2]
[420630071,1776375031876,-500.0,8.117e-05,2]
[420630072,1776375031885,-500.0,8.117e-05,2]
[420630073,1776375031894,-500.0,8.117e-05,2]
[420630074,1776375031903,-500.0,8.117e-05,2]
[420630075,1776375031912,-500.0,8.117e-05,2]
[420630076,1776375031922,-500.0,8.117e-05,2]
[420630077,1776375031933,-197.80363511,8.117e-05,2]
[420630078,1776375031942,-500.0,8.117e-05,2]
[420630079,1776375031951,-176.50951145,8.117e-05,2]
[420630081,1776375031961,-47635.06487324,8.118e-05,2]
[420630106,1776375032246,-16669.18264899,8.118e-05,2]
[420630218,1776375038077,-36964.8235645,8.118e-05,2]
[420630268,1776375043265,-741.48,8.118e-05,2]
[420630330,1776375046273,-1260.13155678,8.118e-05,2]
[420630331,1776375046329,-4647.00788634,8.118e-05,2]
[420630334,1776375687533,200.0,7.926e-05,30]
[420630379,1776376232045,-355.71045177,6.941e-05,2]
[420630381,1776376232057,-334.45923056,6.941e-05,2]
[420630383,1776376232070,-4309.83031767,6.941e-05,2]
[420630385,1776376232079,-325.1254671,7.011e-05,2]
[420630387,1776376232089,-506.08345821,7.011e-05,2]
[420630549,1776376238384,-12.91654179,7.011e-05,2]
[420630550,1776376238394,-538.74621044,7.208e-05,2]
[420630551,1776376238403,-2154.98484175,7.208e-05,2]
[420630552,1776376238412,-4843.86717804,7.208e-05,2]
[420630553,1776376238421,-376.67466081,7.208e-05,2]
[420630554,1776376238431,-1506.69864324,7.208e-05,2]
[420630555,1776376238440,-3390.0719473,7.208e-05,2]
[420630556,1776376238451,-2580.32634006,7.208e-05,2]
[420630557,1776376238464,-3440.44143834,7.208e-05,2]
[420630558,1776376238474,-322.40342515,7.217e-05,2]
[420630559,1776376238483,-173.896225,7.41e-05,2]
[420630560,1776376238492,-1459.783058,7.776e-05,2]
[420630561,1776376238501,-500.0,7.917e-05,2]
[420630562,1776376238511,-500.0,7.917e-05,2]
[420630563,1776376238520,-500.0,7.917e-05,2]
[420630564,1776376238530,-156.625906,7.917e-05,2]
[420630565,1776376238539,-500.0,7.917e-05,2]
[420630566,1776376238551,-500.0,7.917e-05,2]
[420630567,1776376238563,-154.75391526,7.917e-05,2]
[420630568,1776376238572,-500.0,7.917e-05,2]
[420630569,1776376238582,-500.0,7.917e-05,2]
[420630570,1776376238592,-500.0,7.917e-05,2]
[420630571,1776376238601,-500.0,7.917e-05,2]
[420630572,1776376238611,-510.53409081,7.917e-05,2]
[420630573,1776376238622,-500.0,7.917e-05,2]
[420630574,1776376238632,-500.0,7.917e-05,2]
[420630575,1776376238641,-500.0,7.917e-05,2]
[420630576,1776376238650,-500.0,7.917e-05,2]
[420630577,1776376238660,-500.0,7.917e-05,2]
[420630578,1776376238669,-500.0,7.917e-05,2]
[420630579,1776376238678,-500.0,7.917e-05,2]
[420630580,1776376238687,-32904.43483881,7.918e-05,2]
[420630581,1776376238700,-811.51114452,7.918e-05,2]
[420630582,1776376238711,-1856.86616958,7.918e-05,2]
[420630605,1776376243211,-27337.97634071,7.918e-05,2]
[420630607,1776376243222,-895.66316871,7.918e-05,2]
[420630608,1776376243266,-3043.89712044,7.918e-05,2]
[420630609,1776376243323,-70415.98968693,7.918e-05,2]
[420630610,1776376243335,-13998.86834645,7.918e-05,2]
[420630611,1776376243374,-11075.91877335,7.918e-05,2]
[420630612,1776376243398,-81.01193,7.918e-05,2]
[420630613,1776376243409,-659.18521373,7.918e-05,2]
[420630614,1776376243420,-1367.3153688,7.918e-05,2]
[420630623,1776376247957,-14971.62145355,7.918e-05,2]
[420630624,1776376248117,-23993.08091556,7.918e-05,2]
[420630625,1776376248129,-8448.65914692,7.918e-05,2]
[420630628,1776376392059,3000.0,8.7e-05,30]
[420630629,1776376392425,5850.0,8.71e-05,30]
[420630630,1776376646550,2734.6,0.00024658,120]
[420630631,1776376775036,1000.0,0.00024658,120]
[420630632,1776376862212,-2984.38454028,7.276e-05,2]
[420630698,1776377432396,-2041.05553876,6.85e-05,2]
[420630701,1776377432406,-1626.03051596,6.919e-05,2]
[420630900,1776377438655,-424.1750197,6.919e-05,2]
[420630901,1776377438668,-934.17900462,6.919e-05,2]
[420630902,1776377438678,-187.84369004,6.919e-05,2]
[420630903,1776377438709,-330.15630996,6.919e-05,2]
[420630904,1776377438718,-319.84754653,7.096e-05,2]
[420630905,1776377438728,-1435.9982602,7.188e-05,2]
[420630906,1776377438820,-4131.77180403,7.188e-05,2]
[420630907,1776377438830,-10617.5331052,7.288e-05,2]
[420630908,1776377438840,-173.8854134,7.35e-05,2]
[420630909,1776377438850,-10090.16739306,7.388e-05,2]
[420630910,1776377438861,-1130.92795559,7.388e-05,2]
[420630911,1776377438870,-1792.93911903,7.488e-05,2]
[420630912,1776377438882,-9734.81425607,7.488e-05,2]
[420630913,1776377438891,-500.0,7.598e-05,2]
[420630914,1776377438900,-500.0,7.598e-05,2]
[420630915,1776377438910,-500.0,7.598e-05,2]
[420630916,1776377438919,-500.0,7.598e-05,2]
[420630917,1776377438928,-500.0,7.598e-05,2]
[420630918,1776377438938,-500.0,7.598e-05,2]
[420630919,1776377438947,-500.0,7.598e-05,2]
[420630920,1776377438956,-438.94456217,7.598e-05,2]
[420630921,1776377438966,-535.55719695,7.598e-05,2]
[420630922,1776377438975,-500.0,7.599e-05,2]
[420630923,1776377438984,-500.0,7.599e-05,2]
[420630924,1776377438994,-441.62207797,7.599e-05,2]
[420630925,1776377439004,-627.55553551,7.599e-05,2]
[420630926,1776377439013,-500.0,7.599e-05,2]
[420630927,1776377439023,-500.0,7.599e-05,2]
[420630928,1776377439032,-500.0,7.599e-05,2]
[420630929,1776377439041,-500.0,7.599e-05,2]
[420630930,1776377439051,-500.0,7.599e-05,2]
[420630931,1776377439060,-500.0,7.599e-05,2]
[420630932,1776377439070,-291.62207797,7.599e-05,2]
[420630933,1776377439079,-500.0,7.599e-05,2]
[420630934,1776377439088,-9089.09390349,7.6e-05,2]
[420630935,1776377439100,-263.8249803,7.6e-05,2]
[420630939,1776377440912,-2915.03903928,7.6e-05,2]
[420630955,1776377443472,-10412.76468092,7.6e-05,2]
[420630956,1776377443484,-4574.14783359,7.6e-05,2]
[420630957,1776377443635,-370.155,7.6e-05,2]
[420630974,1776377446656,-15994.39811296,7.6e-05,2]
[420630976,1776377447355,-782.67246136,7.6e-05,2]
[420630979,1776377503086,153.55999999,0.00024658,120]
[420630992,1776378150656,172.0,0.00022636,120]
[420630993,1776378151984,172.0,0.00023768,120]
[420631003,1776378479975,274.59235674,0.00024657,120]
[420631004,1776378482856,244.0,0.00024657,120]
[420631006,1776378496095,155.0,0.00024657,120]
[420631007,1776378527204,222.0,0.00024657,120]
[420631015,1776378632630,-455.6436383,7.01e-05,2]
[420631016,1776378632639,-313.4505956,7.01e-05,2]
[420631017,1776378632648,-519.0,7.01e-05,2]
[420631019,1776378632657,-173.896225,7.026e-05,2]
[420631020,1776378632666,-455.6765822,7.242e-05,2]
[420631021,1776378632675,-1216.485881,7.25e-05,2]
[420631022,1776378632684,-298.33962399,7.326e-05,2]
[420631023,1776378632694,-325.0830777,7.4e-05,2]
[420631024,1776378632703,-439.28887485,7.517e-05,2]
[420631025,1776378632712,-500.0,7.517e-05,2]
[420631026,1776378632722,-639.00607508,7.517e-05,2]
[420631027,1776378632731,-500.0,7.517e-05,2]
[420631028,1776378632741,-500.0,7.517e-05,2]
[420631029,1776378632750,-500.0,7.517e-05,2]
[420631030,1776378632759,-500.0,7.517e-05,2]
[420631031,1776378632768,-500.0,7.517e-05,2]
[420631032,1776378632777,-215.43828469,7.517e-05,2]
[420631033,1776378632786,-170.61746633,7.517e-05,2]
[420631034,1776378632796,-2330.56751649,7.518e-05,2]
[420631035,1776378632805,-139207.50615868,7.518e-05,2]
[420631044,1776378639927,-36147.66969688,7.518e-05,2]
[420631102,1776378643921,-9665.37628194,7.518e-05,2]
[420631104,1776378643932,-442.06931377,7.518e-05,2]
[420631107,1776378643943,-7040.94383452,7.518e-05,2]
[420631275,1776378647043,-7577.47876493,7.518e-05,2]
[420631276,1776378647217,-6821.74856409,7.518e-05,2]
[420631277,1776378662872,-1098.25067592,7.443e-05,2]
[420631278,1776378997129,259.58,0.00024365,120]
[420631281,1776379789328,191.5907484,2.976e-05,2]
[420631322,1776379831931,-4809.66046676,6.291e-05,2]
[420631325,1776379831943,-190.33953324,6.291e-05,2]
[420631327,1776379831953,-104.96973335,6.355e-05,2]
[420631331,1776379831983,-206.9202748,6.355e-05,2]
[420631333,1776379831993,-512.0,6.419e-05,2]
[420631335,1776379832002,-323.75493972,6.451e-05,2]
[420631337,1776379832012,-750.62551889,6.47e-05,2]
[420631436,1776379839350,-3823.59982143,6.47e-05,2]
[420631437,1776379839361,-1200.0,6.549e-05,2]
[420631438,1776379839373,-301.66792649,6.959e-05,2]
[420631439,1776379839385,-325.0618789,7.026e-05,2]
[420631440,1776379839396,-183.0,7.204e-05,2]
[420631441,1776379839407,-500.0,7.217e-05,2]
[420631442,1776379839418,-500.0,7.217e-05,2]
[420631443,1776379839429,-299.06241666,7.217e-05,2]
[420631444,1776379839440,-500.0,7.217e-05,2]
[420631445,1776379839455,-500.0,7.217e-05,2]
[420631446,1776379839465,-500.0,7.217e-05,2]
[420631447,1776379839476,-500.0,7.217e-05,2]
[420631448,1776379839487,-500.0,7.217e-05,2]
[420631449,1776379839498,-383.58353249,7.217e-05,2]
[420631450,1776379839509,-500.0,7.217e-05,2]
[420631451,1776379839520,-79828.03718365,7.218e-05,2]
[420631452,1776379839532,-109664.43295926,7.218e-05,2]
[420631453,1776379839544,-1766.79320632,7.35e-05,2]
[420631454,1776379839555,-325.2695583,7.35e-05,2]
[420631455,1776379839566,-423.68124294,7.517e-05,2]
[420631456,1776379839577,-3029.3959775,7.529e-05,2]
[420631457,1776379839587,-715.0357772,7.529e-05,2]
[420631458,1776379839599,-2249.9536529,7.529e-05,2]
[420631459,1776379839611,-6734.4570674,7.529e-05,2]
[420631460,1776379839623,-1216.485881,7.555e-05,2]
[420631461,1776379839634,-177.0,7.555e-05,2]
[420631462,1776379839644,-152.0,7.572e-05,7]
[420631463,1776379839655,-27810.81247161,7.6e-05,2]
[420631464,1776379839665,-500.0,7.6e-05,2]
[420631465,1776379839676,-537.6845,7.781e-05,2]
[420631466,1776379839686,-537.6845,7.781e-05,2]
[420631467,1776379839697,-2150.738,7.781e-05,2]
[420631468,1776379839707,-162.380719,7.781e-05,2]
[420631469,1776379839717,-445.202766,7.781e-05,2]
[420631470,1776379839727,-150.0,7.8e-05,2]
[420631471,1776379839737,-557.5788265,7.836e-05,2]
[420631472,1776379839746,-325.2695583,7.848e-05,2]
[420631473,1776379839756,-173.8854134,7.849e-05,2]
[420631474,1776379839767,-41377.93841242,7.857e-05,2]
[420631475,1776379839777,-151.0,7.857e-05,2]
[420631476,1776379839788,-1216.485881,7.86e-05,2]
[420631477,1776379839798,-578.20924308,7.891e-05,2]
[420631478,1776379839808,-300.0,7.944e-05,2]
[420631479,1776379839820,-599.60298507,7.946e-05,2]
[420631480,1776379839832,-450.0,8e-05,2]
[420631481,1776379839843,-621.78829552,8.001e-05,2]
[420631482,1776379839854,-644.79446246,8.056e-05,2]
[420631483,1776379839865,-668.65185757,8.111e-05,2]
[420631484,1776379839876,-160.0,8.152e-05,2]
[420631485,1776379839886,-160.0,8.152e-05,2]
[420631486,1776379839896,-1216.485881,8.165e-05,2]
[420631487,1776379839907,-778.01433786,8.166e-05,2]
[420631489,1776379839917,-325.2809594,8.172e-05,2]
[420631491,1776379839928,-500.44868426,8.193e-05,2]
[420631492,1776379839939,-500.0,8.193e-05,2]
[420631493,1776379839950,-500.0,8.193e-05,2]
[420631495,1776379839961,-500.0,8.193e-05,2]
[420631496,1776379839972,-500.0,8.193e-05,2]
[420631498,1776379839983,-155.0,8.218e-05,2]
[420631500,1776379839994,-1231.5582,8.219e-05,2]
[420631501,1776379840006,-500.0,8.219e-05,2]
[420631503,1776379840016,-500.68270351,8.219e-05,2]
[420631504,1776379840026,-505.51631358,8.219e-05,2]
[420631505,1776379840036,-500.0,8.219e-05,2]
[420631506,1776379840047,-577.18940498,8.219e-05,2]
[420631507,1776379840058,-500.0,8.219e-05,2]
[420631508,1776379840069,-500.0,8.219e-05,2]
[420631509,1776379840079,-1000.0,8.219e-05,2]
[420631510,1776379840089,-500.0,8.219e-05,2]
[420631511,1776379840099,-500.63274299,8.219e-05,2]
[420631512,1776379840110,-500.77896907,8.219e-05,2]
[420631513,1776379840120,-500.0,8.219e-05,2]
[420631514,1776379840130,-500.0,8.219e-05,2]
[420631515,1776379840141,-500.0,8.219e-05,2]
[420631516,1776379840151,-500.0,8.219e-05,2]
[420631517,1776379840162,-500.67666775,8.219e-05,2]
[420631518,1776379840173,-500.0,8.219e-05,2]
[420631519,1776379840183,-500.0,8.219e-05,2]
[420631520,1776379840193,-500.0,8.219e-05,2]
[420631521,1776379840204,-500.0,8.219e-05,2]
[420631522,1776379840213,-500.0,8.219e-05,2]
[420631523,1776379840224,-500.0,8.219e-05,2]
[420631524,1776379840234,-775.34,8.219e-05,2]
[420631525,1776379840244,-500.0,8.219e-05,2]
[420631526,1776379840254,-635.02315964,8.219e-05,2]
[420631527,1776379840264,-500.0,8.219e-05,2]
[420631528,1776379840276,-529.06040754,8.219e-05,2]
[420631529,1776379840287,-490.0,8.219e-05,2]
[420631530,1776379840297,-500.55144716,8.219e-05,2]
[420631531,1776379840308,-500.0,8.219e-05,2]
[420631532,1776379840318,-558.57748637,8.219e-05,2]
[420631533,1776379840328,-500.0,8.219e-05,2]
[420631534,1776379840339,-631.37503037,8.219e-05,2]
[420631535,1776379840349,-848.68,8.219e-05,2]
[420631536,1776379840360,-500.0,8.219e-05,2]
[420631537,1776379840370,-500.0,8.219e-05,2]
[420631538,1776379840380,-500.0,8.219e-05,2]
[420631539,1776379840389,-500.0,8.219e-05,2]
[420631540,1776379840399,-500.0,8.219e-05,2]
[420631541,1776379840409,-500.0,8.219e-05,2]
[420631543,1776379840419,-500.0,8.219e-05,2]
[420631544,1776379840428,-500.0,8.219e-05,2]
[420631545,1776379840438,-500.0,8.219e-05,2]
[420631546,1776379840449,-1014.43,8.219e-05,2]
[420631547,1776379840458,-500.0,8.219e-05,2]
[420631548,1776379840468,-793.37,8.219e-05,2]
[420631549,1776379840479,-500.0,8.219e-05,2]
[420631550,1776379840489,-500.0,8.219e-05,2]
[420631551,1776379840500,-500.0,8.219e-05,2]
[420631552,1776379840513,-500.0,8.219e-05,2]
[420631553,1776379840524,-500.0,8.219e-05,2]
[420631554,1776379840534,-474.12553319,8.219e-05,2]
[420631555,1776379840544,-500.0,8.219e-05,2]
[420631556,1776379840554,-500.0,8.219e-05,2]
[420631557,1776379840565,-893.53,8.219e-05,2]
[420631558,1776379840574,-500.0,8.219e-05,2]
[420631559,1776379840586,-500.0,8.219e-05,2]
[420631560,1776379840595,-500.0,8.219e-05,2]
[420631561,1776379840606,-500.0,8.219e-05,2]
[420631562,1776379840616,-500.0,8.219e-05,2]
[420631563,1776379840627,-502.44324979,8.219e-05,2]
[420631564,1776379840640,-500.84097635,8.219e-05,2]
[420631565,1776379840650,-936.7,8.219e-05,2]
[420631566,1776379840661,-500.0,8.219e-05,2]
[420631567,1776379840671,-719.95,8.219e-05,2]
[420631568,1776379840682,-500.0,8.219e-05,2]
[420631569,1776379840692,-1550.92,8.219e-05,2]
[420631570,1776379840704,-1603.22,8.219e-05,2]
[420631571,1776379840714,-500.0,8.219e-05,2]
[420631572,1776379840725,-500.0,8.219e-05,2]
[420631573,1776379840735,-1074.79,8.219e-05,2]
[420631575,1776379840746,-500.0,8.219e-05,2]
[420631576,1776379840757,-809.01,8.219e-05,2]
[420631577,1776379840766,-2543.19,8.219e-05,2]